[Event "Titled Tuesday Blitz August 1 Late 2023"]
[White "Navyblue1"]
[Black "Bazilius, Augustinas"]
[BlackFideId "12832251"]
[WhiteElo "1966"]
[BlackElo "2425"]
[Result "0-1"]
[Round "10"]
[TimeControl "180+1"]
[Date "2023.08.01"]
[WhiteClock "0:00:00"]
[BlackClock "0:00:05"]
[Board "92"]

1. d4 {[%clk 0:02:52]}  Nf6 {[%clk 0:02:58]} 2. c4 {[%clk 0:02:53]}  c5 {[%clk 0:02:58]} 3. d5 {[%clk 0:02:52]}  b5 {[%clk 0:02:58]} 4. cxb5 {[%clk 0:02:52]}  a6 {[%clk 0:02:59]} 5. e3 {[%clk 0:02:50]}  Bb7 {[%clk 0:02:51]} 6. bxa6 {[%clk 0:02:34]}  Bxd5 {[%clk 0:02:48]} 7. Nc3 {[%clk 0:02:32]}  Bc6 {[%clk 0:02:47]} 8. Bd2 {[%clk 0:02:21]}  Nxa6 {[%clk 0:02:46]} 9. e4 {[%clk 0:02:04]}  Nxe4 {[%clk 0:02:32]} 10. Nxe4 {[%clk 0:02:03]}  Bxe4 {[%clk 0:02:33]} 11. Nf3 {[%clk 0:01:54]}  e6 {[%clk 0:02:22]} 12. Bc3 {[%clk 0:01:48]}  Nb4 {[%clk 0:02:07]} 13. Bxb4 {[%clk 0:01:41]}  cxb4 {[%clk 0:02:08]} 14. Be2 {[%clk 0:01:34]}  Be7 {[%clk 0:01:58]} 15. O-O {[%clk 0:01:33]}  O-O {[%clk 0:01:58]} 16. Qd2 {[%clk 0:01:29]}  d5 {[%clk 0:01:54]} 17. Nd4 {[%clk 0:01:23]}  Qb6 {[%clk 0:01:46]} 18. Bf3 {[%clk 0:01:17]}  Bxf3 {[%clk 0:01:42]} 19. Nxf3 {[%clk 0:01:17]}  Rfc8 {[%clk 0:01:38]} 20. h3 {[%clk 0:01:13]}  Rc5 {[%clk 0:01:30]} 21. Rfe1 {[%clk 0:01:08]}  Rac8 {[%clk 0:01:18]} 22. Nd4 {[%clk 0:01:08]}  Rc4 {[%clk 0:01:14]} 23. Nf5 {[%clk 0:00:43]}  Bf6 {[%clk 0:01:14]} 24. Ne3 {[%clk 0:00:39]}  R4c5 {[%clk 0:01:05]} 25. Ng4 {[%clk 0:00:36]}  Be7 {[%clk 0:00:57]} 26. Ne3 {[%clk 0:00:28]}  g6 {[%clk 0:00:41]} 27. Rad1 {[%clk 0:00:22]}  Bf6 {[%clk 0:00:40]} 28. Ng4 {[%clk 0:00:19]}  Bg7 {[%clk 0:00:39]} 29. Ne3 {[%clk 0:00:17]}  d4 {[%clk 0:00:37]} 30. Ng4 {[%clk 0:00:17]}  Rc2 {[%clk 0:00:37]} 31. Qf4 {[%clk 0:00:17]}  Rxb2 {[%clk 0:00:34]} 32. Nf6+ {[%clk 0:00:15]}  Bxf6 {[%clk 0:00:35]} 33. Qxf6 {[%clk 0:00:16]}  Rxa2 {[%clk 0:00:33]} 34. Rxd4 {[%clk 0:00:16]}  b3 {[%clk 0:00:26]} 35. Red1 {[%clk 0:00:16]}  Raa8 {[%clk 0:00:21]} 36. Rd7 {[%clk 0:00:14]}  Rf8 {[%clk 0:00:18]} 37. Rb1 {[%clk 0:00:13]}  Rab8 {[%clk 0:00:14]} 38. Rd3 {[%clk 0:00:12]}  b2 {[%clk 0:00:12]} 39. Rd2 {[%clk 0:00:12]}  Rfc8 {[%clk 0:00:06]} 40. Rbxb2 {[%clk 0:00:11]}  Rc1+ {[%clk 0:00:04]} 41. Kh2 {[%clk 0:00:11]}  Qc7+ {[%clk 0:00:05]} 42. g3 {[%clk 0:00:10]}  Rc8 {[%clk 0:00:04]} 43. Ra2 {[%clk 0:00:07]}  Re8 {[%clk 0:00:04]} 44. Rab2 {[%clk 0:00:07]}  Qc6 {[%clk 0:00:03]} 45. f3 {[%clk 0:00:06]}  Qc5 {[%clk 0:00:03]} 46. Rg2 {[%clk 0:00:06]}  Qd5 {[%clk 0:00:03]} 47. Rbd2 {[%clk 0:00:05]}  Qb5 {[%clk 0:00:02]} 48. Rde2 {[%clk 0:00:05]}  Qb1 {[%clk 0:00:02]} 49. g4 {[%clk 0:00:04]}  Rh1+ {[%clk 0:00:02]} 50. Kg3 {[%clk 0:00:04]}  Qb8+ {[%clk 0:00:03]} 51. Qf4 {[%clk 0:00:03]}  Qb3 {[%clk 0:00:02]} 52. Re3 {[%clk 0:00:03]}  Qb1 {[%clk 0:00:02]} 53. Ree2 {[%clk 0:00:02]}  Qd3 {[%clk 0:00:02]} 54. Qe3 {[%clk 0:00:02]}  Qd5 {[%clk 0:00:03]} 55. Qe4 {[%clk 0:00:02]}  Qd6+ {[%clk 0:00:03]} 56. Qf4 {[%clk 0:00:03]}  Qe7 {[%clk 0:00:04]} 57. Qe5 {[%clk 0:00:03]}  f6 {[%clk 0:00:04]} 58. Qf4 {[%clk 0:00:03]}  g5 {[%clk 0:00:04]} 59. Qe4 {[%clk 0:00:03]}  Qc7+ {[%clk 0:00:05]} 60. Kf2 {[%clk 0:00:02]}  Qb6+ {[%clk 0:00:05]} 61. Qe3 {[%clk 0:00:02]}  Qd6 {[%clk 0:00:05]} 62. Qe4 {[%clk 0:00:01]}  Qd1 {[%clk 0:00:05]} 63. Qe3 {[%clk 0:00:01]}  Qf1+ {[%clk 0:00:05]} 64. Kg3 {[%clk 0:00:01]}  h5 {[%clk 0:00:05]} 65. gxh5 {[%clk 0:00:00]}  Qd1 {[%clk 0:00:05]} 0-1


[Site "https://www.chess.com"]

[Event "Titled Tuesday Blitz August 1 Late 2023"]
[White "Gabdushev, Ruslan"]
[Black "The_Straightforward_Rook"]
[WhiteFideId "4137833"]
[WhiteElo "2418"]
[BlackElo "2309"]
[Result "1-0"]
[Round "10"]
[TimeControl "180+1"]
[Date "2023.08.01"]
[WhiteClock "0:01:00"]
[BlackClock "0:01:40"]
[Board "93"]

1. b3 {[%clk 0:03:00]}  e5 {[%clk 0:02:58]} 2. Bb2 {[%clk 0:03:00]}  Nc6 {[%clk 0:02:59]} 3. e3 {[%clk 0:03:00]}  Nf6 {[%clk 0:02:59]} 4. Bb5 {[%clk 0:02:59]}  Bd6 {[%clk 0:02:58]} 5. Na3 {[%clk 0:02:57]}  e4 {[%clk 0:02:58]} 6. f4 {[%clk 0:02:55]}  O-O {[%clk 0:02:55]} 7. Nh3 {[%clk 0:02:54]}  a6 {[%clk 0:02:52]} 8. Bxc6 {[%clk 0:02:52]}  dxc6 {[%clk 0:02:53]} 9. Nf2 {[%clk 0:02:51]}  b5 {[%clk 0:02:52]} 10. c4 {[%clk 0:02:50]}  Qe7 {[%clk 0:02:50]} 11. Nc2 {[%clk 0:02:49]}  c5 {[%clk 0:02:48]} 12. Qe2 {[%clk 0:02:43]}  Bb7 {[%clk 0:02:47]} 13. g4 {[%clk 0:02:36]}  b4 {[%clk 0:02:45]} 14. g5 {[%clk 0:02:33]}  Ne8 {[%clk 0:02:46]} 15. h4 {[%clk 0:02:29]}  f5 {[%clk 0:02:45]} 16. gxf6 {[%clk 0:02:26]}  Nxf6 {[%clk 0:02:44]} 17. h5 {[%clk 0:02:21]}  h6 {[%clk 0:02:40]} 18. Ng4 {[%clk 0:02:20]}  Nxg4 {[%clk 0:02:37]} 19. Qxg4 {[%clk 0:02:19]}  Bc8 {[%clk 0:02:37]} 20. Qg2 {[%clk 0:02:10]}  Bf5 {[%clk 0:02:37]} 21. Rg1 {[%clk 0:02:07]}  Rf7 {[%clk 0:02:37]} 22. a3 {[%clk 0:02:01]}  Qh4+ {[%clk 0:02:35]} 23. Qg3 {[%clk 0:01:54]}  Qxh5 {[%clk 0:02:35]} 24. axb4 {[%clk 0:01:53]}  cxb4 {[%clk 0:02:31]} 25. Bxg7 {[%clk 0:01:45]}  Kh7 {[%clk 0:02:19]} 26. Bb2 {[%clk 0:01:42]}  Be7 {[%clk 0:02:18]} 27. Qg7+ {[%clk 0:01:34]}  Rxg7 {[%clk 0:02:16]} 28. Rxg7+ {[%clk 0:01:33]}  Kh8 {[%clk 0:02:15]} 29. Rg5+ {[%clk 0:01:32]}  Kh7 {[%clk 0:02:14]} 30. Rxh5 {[%clk 0:01:31]}  Bg4 {[%clk 0:02:10]} 31. Rha5 {[%clk 0:01:28]}  h5 {[%clk 0:02:10]} 32. Kf2 {[%clk 0:01:21]}  Bh4+ {[%clk 0:02:09]} 33. Kf1 {[%clk 0:01:20]}  Rg8 {[%clk 0:02:09]} 34. Rg5 {[%clk 0:01:10]}  Bh3+ {[%clk 0:02:02]} 35. Kg1 {[%clk 0:01:05]}  Bxg5 {[%clk 0:02:01]} 36. fxg5 {[%clk 0:01:05]}  Rxg5+ {[%clk 0:02:02]} 37. Kh2 {[%clk 0:01:04]}  Bg4 {[%clk 0:01:53]} 38. Nxb4 {[%clk 0:01:02]}  a5 {[%clk 0:01:50]} 39. Nd5 {[%clk 0:01:00]}  c6 {[%clk 0:01:40]} 40. Nf6+ {[%clk 0:01:00]} 1-0


[Site "https://www.chess.com"]

[Event "Titled Tuesday Blitz August 1 Late 2023"]
[White "Carrasco Miranda, Andres"]
[Black "Harshal, Shahi"]
[WhiteFideId "3405990"]
[BlackFideId "5048257"]
[WhiteElo "2411"]
[BlackElo "2303"]
[Result "1-0"]
[Round "10"]
[TimeControl "180+1"]
[Date "2023.08.01"]
[WhiteClock "0:00:52"]
[BlackClock "0:00:00"]
[Board "94"]

1. d4 {[%clk 0:02:59]}  Nf6 {[%clk 0:02:57]} 2. c4 {[%clk 0:02:58]}  e6 {[%clk 0:02:56]} 3. g3 {[%clk 0:02:58]}  d5 {[%clk 0:02:51]} 4. Bg2 {[%clk 0:02:58]}  c6 {[%clk 0:02:51]} 5. Nf3 {[%clk 0:02:57]}  Be7 {[%clk 0:02:50]} 6. O-O {[%clk 0:02:56]}  O-O {[%clk 0:02:49]} 7. Nbd2 {[%clk 0:02:56]}  b6 {[%clk 0:02:49]} 8. Qc2 {[%clk 0:02:56]}  Nbd7 {[%clk 0:02:49]} 9. e4 {[%clk 0:02:57]}  Nxe4 {[%clk 0:02:37]} 10. Nxe4 {[%clk 0:02:58]}  dxe4 {[%clk 0:02:35]} 11. Qxe4 {[%clk 0:02:56]}  Bb7 {[%clk 0:02:28]} 12. Rd1 {[%clk 0:02:54]}  Nf6 {[%clk 0:02:27]} 13. Qc2 {[%clk 0:02:54]}  Qc8 {[%clk 0:02:23]} 14. c5 {[%clk 0:02:47]}  Rd8 {[%clk 0:01:58]} 15. Bf4 {[%clk 0:02:32]}  Nd5 {[%clk 0:01:53]} 16. Bg5 {[%clk 0:02:32]}  bxc5 {[%clk 0:01:39]} 17. dxc5 {[%clk 0:02:28]}  Bxg5 {[%clk 0:01:24]} 18. Nxg5 {[%clk 0:02:27]}  Nf6 {[%clk 0:01:25]} 19. Rxd8+ {[%clk 0:02:22]}  Qxd8 {[%clk 0:01:24]} 20. Rd1 {[%clk 0:02:23]}  Qe7 {[%clk 0:01:24]} 21. b4 {[%clk 0:02:20]}  Rd8 {[%clk 0:01:23]} 22. h4 {[%clk 0:02:10]}  h6 {[%clk 0:01:15]} 23. Ne4 {[%clk 0:02:09]}  Rxd1+ {[%clk 0:00:57]} 24. Qxd1 {[%clk 0:02:06]}  Nd5 {[%clk 0:00:56]} 25. Nd6 {[%clk 0:02:04]}  Ba6 {[%clk 0:00:56]} 26. a3 {[%clk 0:02:01]}  Nc3 {[%clk 0:00:49]} 27. Qe1 {[%clk 0:01:46]}  Ne2+ {[%clk 0:00:44]} 28. Kh2 {[%clk 0:01:45]}  Qd7 {[%clk 0:00:36]} 29. Bf1 {[%clk 0:01:43]}  Nd4 {[%clk 0:00:32]} 30. Qc3 {[%clk 0:01:27]}  Bxf1 {[%clk 0:00:27]} 31. Qxd4 {[%clk 0:01:25]}  e5 {[%clk 0:00:28]} 32. Qe4 {[%clk 0:01:11]}  Qh3+ {[%clk 0:00:18]} 33. Kg1 {[%clk 0:01:12]}  Ba6 {[%clk 0:00:11]} 34. Qf5 {[%clk 0:01:02]}  Qf1+ {[%clk 0:00:10]} 35. Kh2 {[%clk 0:01:02]}  f6 {[%clk 0:00:05]} 36. a4 {[%clk 0:00:58]}  Be2 {[%clk 0:00:00]} 37. b5 {[%clk 0:00:52]} 1-0


[Site "https://www.chess.com"]

[Event "Titled Tuesday Blitz August 1 Late 2023"]
[White "Slavin, Alexey"]
[Black "Thiel, Thomas"]
[WhiteFideId "24104388"]
[BlackFideId "4615964"]
[WhiteElo "2348"]
[BlackElo "2269"]
[Result "1-0"]
[Round "10"]
[TimeControl "180+1"]
[Date "2023.08.01"]
[WhiteClock "0:01:02"]
[BlackClock "0:00:13"]
[Board "96"]

1. e4 {[%clk 0:02:59]}  d5 {[%clk 0:02:59]} 2. Nc3 {[%clk 0:02:59]}  dxe4 {[%clk 0:02:56]} 3. Nxe4 {[%clk 0:02:58]}  Nf6 {[%clk 0:02:55]} 4. Ng5 {[%clk 0:02:54]}  h6 {[%clk 0:02:51]} 5. N5f3 {[%clk 0:02:52]}  g6 {[%clk 0:02:51]} 6. Ne2 {[%clk 0:02:51]}  Bg7 {[%clk 0:02:51]} 7. Ng3 {[%clk 0:02:50]}  O-O {[%clk 0:02:49]} 8. d4 {[%clk 0:02:49]}  c5 {[%clk 0:02:46]} 9. c3 {[%clk 0:02:34]}  cxd4 {[%clk 0:02:42]} 10. Nxd4 {[%clk 0:02:34]}  Nc6 {[%clk 0:02:41]} 11. Nxc6 {[%clk 0:02:33]}  Qxd1+ {[%clk 0:02:40]} 12. Kxd1 {[%clk 0:02:33]}  bxc6 {[%clk 0:02:40]} 13. f3 {[%clk 0:02:31]}  Rd8+ {[%clk 0:02:27]} 14. Kc2 {[%clk 0:02:31]}  Nh5 {[%clk 0:02:00]} 15. Bd3 {[%clk 0:02:23]}  Nxg3 {[%clk 0:01:57]} 16. hxg3 {[%clk 0:02:23]}  h5 {[%clk 0:01:50]} 17. Bg5 {[%clk 0:02:18]}  Bf6 {[%clk 0:01:50]} 18. Be3 {[%clk 0:02:13]}  Be6 {[%clk 0:01:45]} 19. Rhd1 {[%clk 0:02:06]}  Be5 {[%clk 0:01:40]} 20. Bf2 {[%clk 0:02:05]}  a5 {[%clk 0:01:32]} 21. Be4 {[%clk 0:01:59]}  Rxd1 {[%clk 0:01:31]} 22. Rxd1 {[%clk 0:01:47]}  Bxa2 {[%clk 0:01:30]} 23. Bxc6 {[%clk 0:01:45]}  Rc8 {[%clk 0:01:27]} 24. Bd5 {[%clk 0:01:43]}  Bc4 {[%clk 0:01:17]} 25. Bxc4 {[%clk 0:01:38]}  Rxc4 {[%clk 0:01:16]} 26. Rd5 {[%clk 0:01:37]}  Bd6 {[%clk 0:01:16]} 27. Rxa5 {[%clk 0:01:34]}  f5 {[%clk 0:01:12]} 28. b3 {[%clk 0:01:29]}  Rc7 {[%clk 0:01:08]} 29. c4 {[%clk 0:01:23]}  Kf7 {[%clk 0:01:07]} 30. Ra7 {[%clk 0:01:18]}  Rxa7 {[%clk 0:01:03]} 31. Bxa7 {[%clk 0:01:17]}  Bxg3 {[%clk 0:01:03]} 32. Kd3 {[%clk 0:01:16]}  Ke6 {[%clk 0:01:02]} 33. b4 {[%clk 0:01:15]}  Kd7 {[%clk 0:01:01]} 34. b5 {[%clk 0:01:13]}  e5 {[%clk 0:01:01]} 35. c5 {[%clk 0:01:13]}  Kc7 {[%clk 0:00:54]} 36. Kc4 {[%clk 0:01:12]}  Bf2 {[%clk 0:00:49]} 37. Kd5 {[%clk 0:01:10]}  h4 {[%clk 0:00:36]} 38. Kxe5 {[%clk 0:01:06]}  Kb7 {[%clk 0:00:13]} 39. Bb6 {[%clk 0:01:02]} 1-0


[Site "https://www.chess.com"]

[Event "Titled Tuesday Blitz August 1 Late 2023"]
[White "Kanyamarala, Trisha"]
[Black "Arias Igual, Alejandro"]
[WhiteFideId "45004722"]
[BlackFideId "2254905"]
[WhiteElo "2345"]
[BlackElo "2264"]
[Result "1-0"]
[Round "10"]
[TimeControl "180+1"]
[Date "2023.08.01"]
[WhiteClock "0:00:19"]
[BlackClock "0:00:00"]
[Board "97"]

1. c4 {[%clk 0:02:56]}  e6 {[%clk 0:02:59]} 2. Nc3 {[%clk 0:02:56]}  d5 {[%clk 0:02:59]} 3. e3 {[%clk 0:02:57]}  Nf6 {[%clk 0:02:58]} 4. Nf3 {[%clk 0:02:57]}  Be7 {[%clk 0:02:57]} 5. b3 {[%clk 0:02:58]}  c5 {[%clk 0:02:56]} 6. Bb2 {[%clk 0:02:58]}  Nc6 {[%clk 0:02:55]} 7. cxd5 {[%clk 0:02:58]}  exd5 {[%clk 0:02:55]} 8. d4 {[%clk 0:02:59]}  O-O {[%clk 0:02:51]} 9. Bd3 {[%clk 0:02:56]}  cxd4 {[%clk 0:02:47]} 10. exd4 {[%clk 0:02:55]}  Bg4 {[%clk 0:02:43]} 11. Be2 {[%clk 0:02:55]}  Re8 {[%clk 0:02:39]} 12. O-O {[%clk 0:02:54]}  Bb4 {[%clk 0:02:28]} 13. Ne5 {[%clk 0:02:51]}  Bxe2 {[%clk 0:02:06]} 14. Nxe2 {[%clk 0:02:47]}  Ne4 {[%clk 0:01:55]} 15. f3 {[%clk 0:02:37]}  Nd6 {[%clk 0:01:41]} 16. Ng3 {[%clk 0:02:34]}  f6 {[%clk 0:01:34]} 17. Ng4 {[%clk 0:02:30]}  Qd7 {[%clk 0:01:24]} 18. Qd3 {[%clk 0:02:19]}  Ne7 {[%clk 0:01:09]} 19. a3 {[%clk 0:02:12]}  Ba5 {[%clk 0:01:08]} 20. Nh5 {[%clk 0:02:10]}  Qf5 {[%clk 0:01:03]} 21. Nhxf6+ {[%clk 0:02:04]}  Kh8 {[%clk 0:00:46]} 22. Qxf5 {[%clk 0:02:02]}  Nexf5 {[%clk 0:00:44]} 23. Nxe8 {[%clk 0:02:02]}  Rxe8 {[%clk 0:00:44]} 24. Ne5 {[%clk 0:02:01]}  Bb6 {[%clk 0:00:41]} 25. Kh1 {[%clk 0:01:56]}  Nxd4 {[%clk 0:00:35]} 26. Rfe1 {[%clk 0:01:54]}  Nc2 {[%clk 0:00:31]} 27. Nf7+ {[%clk 0:01:53]}  Kg8 {[%clk 0:00:31]} 28. Rxe8+ {[%clk 0:01:43]}  Nxe8 {[%clk 0:00:31]} 29. Rc1 {[%clk 0:01:38]}  Nxa3 {[%clk 0:00:30]} 30. Bxa3 {[%clk 0:01:36]}  Kxf7 {[%clk 0:00:29]} 31. Rc8 {[%clk 0:01:34]}  Nf6 {[%clk 0:00:26]} 32. Rb8 {[%clk 0:01:34]}  Ke6 {[%clk 0:00:21]} 33. Rxb7 {[%clk 0:01:34]}  g5 {[%clk 0:00:20]} 34. Bb2 {[%clk 0:01:29]}  Nd7 {[%clk 0:00:16]} 35. g4 {[%clk 0:01:07]}  Kd6 {[%clk 0:00:16]} 36. Bc1 {[%clk 0:00:50]}  h6 {[%clk 0:00:13]} 37. h4 {[%clk 0:00:49]}  Kc6 {[%clk 0:00:04]} 38. Rxd7 {[%clk 0:00:44]}  Kxd7 {[%clk 0:00:05]} 39. hxg5 {[%clk 0:00:44]}  hxg5 {[%clk 0:00:05]} 40. Bxg5 {[%clk 0:00:44]}  Ke6 {[%clk 0:00:06]} 41. Kg2 {[%clk 0:00:37]}  Ba5 {[%clk 0:00:06]} 42. Kf2 {[%clk 0:00:36]}  d4 {[%clk 0:00:06]} 43. Ke2 {[%clk 0:00:36]}  Ke5 {[%clk 0:00:05]} 44. Kd3 {[%clk 0:00:35]}  Bb4 {[%clk 0:00:05]} 45. Bh6 {[%clk 0:00:33]}  Kd5 {[%clk 0:00:03]} 46. Bg7 {[%clk 0:00:32]}  Bd6 {[%clk 0:00:03]} 47. Bxd4 {[%clk 0:00:31]}  a6 {[%clk 0:00:03]} 48. Be3 {[%clk 0:00:28]}  Ke5 {[%clk 0:00:03]} 49. f4+ {[%clk 0:00:28]}  Ke6 {[%clk 0:00:03]} 50. Ke4 {[%clk 0:00:28]}  Bb4 {[%clk 0:00:03]} 51. f5+ {[%clk 0:00:27]}  Kf7 {[%clk 0:00:03]} 52. g5 {[%clk 0:00:22]}  Bf8 {[%clk 0:00:04]} 53. Bd4 {[%clk 0:00:20]}  Bd6 {[%clk 0:00:04]} 54. g6+ {[%clk 0:00:20]}  Kf8 {[%clk 0:00:04]} 55. f6 {[%clk 0:00:20]}  Bg3 {[%clk 0:00:04]} 56. Kf5 {[%clk 0:00:20]}  Bc7 {[%clk 0:00:02]} 57. Ke6 {[%clk 0:00:19]}  Ba5 {[%clk 0:00:02]} 58. g7+ {[%clk 0:00:19]}  Kg8 {[%clk 0:00:01]} 59. f7+ {[%clk 0:00:19]}  Kh7 {[%clk 0:00:00]} 60. g8=Q+ {[%clk 0:00:19]} 1-0


[Site "https://www.chess.com"]

[Event "Titled Tuesday Blitz August 1 Late 2023"]
[White "Zilleruelo Irizarry, Diego"]
[Black "Feliz Dotel, Dewar Bienvenido"]
[WhiteFideId "3101460"]
[BlackFideId "6402801"]
[WhiteElo "2329"]
[BlackElo "2169"]
[Result "1-0"]
[Round "10"]
[TimeControl "180+1"]
[Date "2023.08.01"]
[WhiteClock "0:00:36"]
[BlackClock "0:00:00"]
[Board "100"]

1. e4 {[%clk 0:03:00]}  e5 {[%clk 0:02:59]} 2. Nf3 {[%clk 0:03:00]}  Nc6 {[%clk 0:02:58]} 3. Bb5 {[%clk 0:03:00]}  Nf6 {[%clk 0:02:58]} 4. O-O {[%clk 0:03:00]}  Nxe4 {[%clk 0:02:58]} 5. Re1 {[%clk 0:03:00]}  Nd6 {[%clk 0:02:59]} 6. Nxe5 {[%clk 0:03:00]}  Be7 {[%clk 0:02:59]} 7. Bf1 {[%clk 0:02:54]}  Nxe5 {[%clk 0:02:59]} 8. Rxe5 {[%clk 0:02:54]}  O-O {[%clk 0:02:59]} 9. d4 {[%clk 0:02:55]}  Ne8 {[%clk 0:02:58]} 10. c4 {[%clk 0:02:50]}  Bd6 {[%clk 0:02:38]} 11. Re1 {[%clk 0:02:48]}  Qh4 {[%clk 0:02:27]} 12. g3 {[%clk 0:02:47]}  Qf6 {[%clk 0:02:25]} 13. Nc3 {[%clk 0:02:41]}  c6 {[%clk 0:02:25]} 14. Ne4 {[%clk 0:02:37]}  Qe7 {[%clk 0:02:09]} 15. Bg5 {[%clk 0:02:20]}  Qe6 {[%clk 0:01:37]} 16. Nf6+ {[%clk 0:02:18]}  Qxf6 {[%clk 0:01:38]} 17. Bxf6 {[%clk 0:02:18]}  Nxf6 {[%clk 0:01:39]} 18. Bh3 {[%clk 0:02:07]}  Bb4 {[%clk 0:01:37]} 19. Re2 {[%clk 0:02:03]}  d5 {[%clk 0:01:36]} 20. Bxc8 {[%clk 0:02:03]}  Raxc8 {[%clk 0:01:37]} 21. a3 {[%clk 0:02:03]}  Bd6 {[%clk 0:01:34]} 22. c5 {[%clk 0:02:03]}  Bb8 {[%clk 0:01:29]} 23. Qb3 {[%clk 0:01:40]}  Rc7 {[%clk 0:01:23]} 24. Rae1 {[%clk 0:01:39]}  Ne4 {[%clk 0:01:23]} 25. f3 {[%clk 0:01:38]}  Ng5 {[%clk 0:01:23]} 26. Re8 {[%clk 0:01:37]}  Ne6 {[%clk 0:00:55]} 27. Rxf8+ {[%clk 0:01:36]}  Kxf8 {[%clk 0:00:56]} 28. Qd3 {[%clk 0:01:31]}  g6 {[%clk 0:00:55]} 29. f4 {[%clk 0:01:30]}  Re7 {[%clk 0:00:46]} 30. Kf1 {[%clk 0:01:11]}  Bc7 {[%clk 0:00:38]} 31. f5 {[%clk 0:01:07]}  Ng5 {[%clk 0:00:27]} 32. Rxe7 {[%clk 0:01:03]}  Kxe7 {[%clk 0:00:28]} 33. fxg6 {[%clk 0:00:53]}  hxg6 {[%clk 0:00:29]} 34. Qb3 {[%clk 0:00:53]}  b6 {[%clk 0:00:27]} 35. Qa4 {[%clk 0:00:52]}  bxc5 {[%clk 0:00:19]} 36. Qxc6 {[%clk 0:00:52]}  Kd8 {[%clk 0:00:17]} 37. Qxd5+ {[%clk 0:00:50]}  Kc8 {[%clk 0:00:16]} 38. Qxg5 {[%clk 0:00:50]}  cxd4 {[%clk 0:00:17]} 39. Qe7 {[%clk 0:00:48]}  d3 {[%clk 0:00:14]} 40. Qe8+ {[%clk 0:00:42]}  Kb7 {[%clk 0:00:12]} 41. Qxf7 {[%clk 0:00:39]}  d2 {[%clk 0:00:00]} 42. Ke2 {[%clk 0:00:36]} 1-0


[Site "https://www.chess.com"]

[Event "Titled Tuesday Blitz August 1 Late 2023"]
[White "Cooper, Aaron"]
[Black "Dominguez Rincon, Miller Duvan"]
[WhiteFideId "2634945"]
[BlackFideId "4406583"]
[WhiteElo "2316"]
[BlackElo "2030"]
[Result "0-1"]
[Round "10"]
[TimeControl "180+1"]
[Date "2023.08.01"]
[WhiteClock "0:00:00"]
[BlackClock "0:00:11"]
[Board "102"]

1. e4 {[%clk 0:03:00]}  e5 {[%clk 0:02:59]} 2. f4 {[%clk 0:03:00]}  exf4 {[%clk 0:02:58]} 3. Nf3 {[%clk 0:02:59]}  d6 {[%clk 0:02:58]} 4. d4 {[%clk 0:02:53]}  g5 {[%clk 0:02:53]} 5. Bc4 {[%clk 0:02:31]}  h6 {[%clk 0:02:35]} 6. Nc3 {[%clk 0:02:27]}  Nf6 {[%clk 0:02:34]} 7. g3 {[%clk 0:02:23]}  fxg3 {[%clk 0:02:28]} 8. hxg3 {[%clk 0:02:22]}  Bg7 {[%clk 0:02:28]} 9. O-O {[%clk 0:02:00]}  Nc6 {[%clk 0:02:27]} 10. e5 {[%clk 0:01:25]}  dxe5 {[%clk 0:02:24]} 11. d5 {[%clk 0:01:24]}  Bh3 {[%clk 0:00:59]} 12. Re1 {[%clk 0:01:17]}  Ne7 {[%clk 0:00:53]} 13. Nxe5 {[%clk 0:00:49]}  O-O {[%clk 0:00:53]} 14. Qf3 {[%clk 0:00:49]}  Qd6 {[%clk 0:00:40]} 15. Kh2 {[%clk 0:00:34]}  Bf5 {[%clk 0:00:28]} 16. Nb5 {[%clk 0:00:30]}  Qc5 {[%clk 0:00:25]} 17. Be3 {[%clk 0:00:29]}  Qb4 {[%clk 0:00:25]} 18. b3 {[%clk 0:00:08]}  a6 {[%clk 0:00:24]} 19. Nxc7 {[%clk 0:00:08]}  Rac8 {[%clk 0:00:22]} 20. d6 {[%clk 0:00:09]}  Qxd6 {[%clk 0:00:22]} 21. Nd5 {[%clk 0:00:05]}  Nfxd5 {[%clk 0:00:19]} 22. Rad1 {[%clk 0:00:03]}  Be6 {[%clk 0:00:16]} 23. Bd4 {[%clk 0:00:02]}  Qc7 {[%clk 0:00:13]} 24. Bd3 {[%clk 0:00:00]}  f5 {[%clk 0:00:11]} 0-1


[Site "https://www.chess.com"]

[Event "Titled Tuesday Blitz August 1 Late 2023"]
[White "dorpato"]
[Black "Necromon"]
[WhiteElo "2054"]
[BlackElo "2365"]
[Result "0-1"]
[Round "10"]
[TimeControl "180+1"]
[Date "2023.08.01"]
[WhiteClock "0:00:00"]
[BlackClock "0:01:31"]
[Board "103"]

1. e4 {[%clk 0:03:00]}  c5 {[%clk 0:02:55]} 2. Nc3 {[%clk 0:02:57]}  Nc6 {[%clk 0:02:53]} 3. g3 {[%clk 0:02:54]}  g6 {[%clk 0:02:53]} 4. Bg2 {[%clk 0:02:53]}  Bg7 {[%clk 0:02:54]} 5. d3 {[%clk 0:02:37]}  e6 {[%clk 0:02:53]} 6. Be3 {[%clk 0:02:34]}  d6 {[%clk 0:02:53]} 7. Qd2 {[%clk 0:02:28]}  Nge7 {[%clk 0:02:51]} 8. Bh6 {[%clk 0:02:18]}  O-O {[%clk 0:02:51]} 9. Bxg7 {[%clk 0:01:53]}  Kxg7 {[%clk 0:02:52]} 10. h4 {[%clk 0:01:51]}  f6 {[%clk 0:02:52]} 11. h5 {[%clk 0:01:35]}  g5 {[%clk 0:02:51]} 12. f4 {[%clk 0:01:29]}  h6 {[%clk 0:02:50]} 13. O-O-O {[%clk 0:01:27]}  Nd4 {[%clk 0:02:49]} 14. Nge2 {[%clk 0:01:20]}  Qa5 {[%clk 0:02:42]} 15. a3 {[%clk 0:01:09]}  Nec6 {[%clk 0:02:41]} 16. Nxd4 {[%clk 0:01:08]}  Nxd4 {[%clk 0:02:36]} 17. Ne2 {[%clk 0:01:08]}  Nxe2+ {[%clk 0:02:31]} 18. Qxe2 {[%clk 0:01:08]}  Rb8 {[%clk 0:02:24]} 19. e5 {[%clk 0:00:56]}  dxe5 {[%clk 0:02:20]} 20. fxe5 {[%clk 0:00:43]}  f5 {[%clk 0:02:19]} 21. g4 {[%clk 0:00:30]}  Bd7 {[%clk 0:02:18]} 22. gxf5 {[%clk 0:00:25]}  Rxf5 {[%clk 0:02:17]} 23. Bh3 {[%clk 0:00:23]}  Rf4 {[%clk 0:02:17]} 24. Rhf1 {[%clk 0:00:22]}  Rbf8 {[%clk 0:02:18]} 25. Rxf4 {[%clk 0:00:22]}  Rxf4 {[%clk 0:02:18]} 26. Rf1 {[%clk 0:00:21]}  Qd8 {[%clk 0:01:57]} 27. Rxf4 {[%clk 0:00:18]}  gxf4 {[%clk 0:01:57]} 28. Qg4+ {[%clk 0:00:18]}  Qg5 {[%clk 0:01:58]} 29. Kd2 {[%clk 0:00:17]}  Kf7 {[%clk 0:01:51]} 30. Ke2 {[%clk 0:00:15]}  Qxe5+ {[%clk 0:01:51]} 31. Kd2 {[%clk 0:00:14]}  Qg5 {[%clk 0:01:51]} 32. Qf3 {[%clk 0:00:14]}  Bc6 {[%clk 0:01:50]} 33. Qe2 {[%clk 0:00:12]}  e5 {[%clk 0:01:49]} 34. Kc3 {[%clk 0:00:11]}  Qf6 {[%clk 0:01:44]} 35. d4 {[%clk 0:00:09]}  cxd4+ {[%clk 0:01:43]} 36. Kd2 {[%clk 0:00:09]}  e4 {[%clk 0:01:43]} 37. Qc4+ {[%clk 0:00:09]}  Ke7 {[%clk 0:01:42]} 38. Qc5+ {[%clk 0:00:08]}  Kd8 {[%clk 0:01:39]} 39. Qxa7 {[%clk 0:00:07]}  Qd6 {[%clk 0:01:36]} 40. Qb6+ {[%clk 0:00:07]}  Ke7 {[%clk 0:01:35]} 41. Qa5 {[%clk 0:00:03]}  f3 {[%clk 0:01:34]} 42. Qf5 {[%clk 0:00:03]}  Qf6 {[%clk 0:01:33]} 43. Qc5+ {[%clk 0:00:02]}  Kf7 {[%clk 0:01:31]} 44. Qc4+ {[%clk 0:00:00]}  Kg7 {[%clk 0:01:31]} 0-1


[Site "https://www.chess.com"]